[Event "*** SCC Grand Prix: Titled Tuesday Blitz"]
[Site "Chess.com"]
[Date "2020.06.23"]
[Round "7"]
[White "Parhamov"]
[Black "Shield12"]
[Result "1-0"]
[WhiteElo "3068"]
[BlackElo "2838"]
[TimeControl "180+1"]
[EndTime "11:17:21 PDT"]
[Termination "Parhamov won on time"]

1. e4 {[%clk 0:03:00.9]} 1... c5 {[%clk 0:02:59.7]} 2. Nc3 {[%clk 0:02:59.9]}
2... Nc6 {[%clk 0:02:59.8]} 3. f4 {[%clk 0:02:58.9]} 3... e6 {[%clk 0:02:59.7]}
4. Bb5 {[%clk 0:02:57.1]} 4... Nd4 {[%clk 0:02:56.7]} 5. Nf3 {[%clk 0:02:56.6]}
5... Nxb5 {[%clk 0:02:51.5]} 6. Nxb5 {[%clk 0:02:56]} 6... a6 {[%clk 0:02:52.2]}
7. Nc3 {[%clk 0:02:55.6]} 7... b5 {[%clk 0:02:51.5]} 8. O-O {[%clk 0:02:53.9]}
8... Bb7 {[%clk 0:02:51.4]} 9. d3 {[%clk 0:02:53.5]} 9... d6 {[%clk 0:02:49.9]}
10. Qe1 {[%clk 0:02:53.2]} 10... Nf6 {[%clk 0:02:46.8]} 11. f5 {[%clk 0:02:53]}
11... Be7 {[%clk 0:02:45.1]} 12. Qg3 {[%clk 0:02:36]} 12... g6 {[%clk
0:02:31.8]} 13. fxe6 {[%clk 0:02:31.5]} 13... fxe6 {[%clk 0:02:31.9]} 14. Bh6
{[%clk 0:02:32.1]} 14... Qd7 {[%clk 0:02:28.6]} 15. e5 {[%clk 0:02:31.8]} 15...
Nh5 {[%clk 0:02:10.4]} 16. Qg4 {[%clk 0:02:31.6]} 16... O-O-O {[%clk 0:02:06.7]}
17. exd6 {[%clk 0:02:27.5]} 17... Bxd6 {[%clk 0:02:06]} 18. Rae1 {[%clk
0:02:26.1]} 18... Nf6 {[%clk 0:01:43.4]} 19. Qxe6 {[%clk 0:02:25.3]} 19... Ng4
{[%clk 0:01:38.5]} 20. Qxd7+ {[%clk 0:02:17]} 20... Kxd7 {[%clk 0:01:38.2]} 21.
Bg5 {[%clk 0:02:14.1]} 21... Rde8 {[%clk 0:01:35.5]} 22. h3 {[%clk 0:02:13.7]}
22... Bxf3 {[%clk 0:01:34.9]} 23. gxf3 {[%clk 0:02:13.4]} 23... Ne5 {[%clk
0:01:18.4]} 24. Kg2 {[%clk 0:02:12.7]} 24... Rhf8 {[%clk 0:00:55.2]} 25. Ne4
{[%clk 0:02:10.9]} 25... Re6 {[%clk 0:00:53.3]} 26. Bh6 {[%clk 0:02:09.3]} 26...
Rf5 {[%clk 0:00:50.8]} 27. Ng3 {[%clk 0:02:04.5]} 27... Rf7 {[%clk 0:00:49.7]}
28. Be3 {[%clk 0:02:01.4]} 28... c4 {[%clk 0:00:32.6]} 29. d4 {[%clk 0:01:57.4]}
29... Bb4 {[%clk 0:00:11.1]} 30. c3 {[%clk 0:01:57.2]} 30... Nd3 {[%clk
0:00:10.9]} 31. cxb4 {[%clk 0:01:57.5]} 31... Nxe1+ {[%clk 0:00:10.5]} 32. Rxe1
{[%clk 0:01:58]} 32... Kc6 {[%clk 0:00:11.4]} 33. Ne4 {[%clk 0:01:58.2]} 33...
Rfe7 {[%clk 0:00:09.6]} 34. Kf2 {[%clk 0:01:56.9]} 34... Re8 {[%clk 0:00:08.8]}
35. Rg1 {[%clk 0:01:56.7]} 35... Rf8 {[%clk 0:00:08.2]} 36. Ke2 {[%clk
0:01:54.7]} 36... Rf5 {[%clk 0:00:05.8]} 37. Rg3 {[%clk 0:01:47.8]} 37... Re7
{[%clk 0:00:06.1]} 38. Kd2 {[%clk 0:01:47.2]} 38... Re6 {[%clk 0:00:06.4]} 39.
Nc3 {[%clk 0:01:46.3]} 39... Re7 {[%clk 0:00:06.4]} 40. d5+ {[%clk 0:01:45.4]}
40... Kd7 {[%clk 0:00:06.7]} 41. f4 {[%clk 0:01:41.9]} 41... Re8 {[%clk
0:00:06.1]} 42. Rg5 {[%clk 0:01:39.6]} 42... Rxg5 {[%clk 0:00:04.9]} 43. fxg5
{[%clk 0:01:40.5]} 43... Rf8 {[%clk 0:00:05.8]} 44. Ke2 {[%clk 0:01:39.7]} 44...
Rf5 {[%clk 0:00:05.7]} 45. h4 {[%clk 0:01:38.3]} 45... Re5 {[%clk 0:00:05.2]}
46. Kf3 {[%clk 0:01:37.8]} 46... Rf5+ {[%clk 0:00:05.6]} 47. Bf4 {[%clk
0:01:37.8]} 47... Ke7 {[%clk 0:00:05.6]} 48. a3 {[%clk 0:01:37.2]} 48... Ke8
{[%clk 0:00:03.4]} 49. Ne4 {[%clk 0:01:35.2]} 49... Kd7 {[%clk 0:00:03.2]} 50.
Nf6+ {[%clk 0:01:35]} 50... Ke7 {[%clk 0:00:03.5]} 51. d6+ {[%clk 0:01:32.9]}
51... Kd8 {[%clk 0:00:03.5]} 52. Ke4 {[%clk 0:01:32.1]} 52... h5 {[%clk
0:00:02.6]} 53. gxh6 {[%clk 0:01:30.6]} 53... Rxf6 {[%clk 0:00:02.5]} 54. Bg5
{[%clk 0:01:30.9]} 1-0

[Event "*** SCC Grand Prix: Titled Tuesday Blitz"]
[Site "Chess.com"]
[Date "2020.06.23"]
[Round "7"]
[White "arvielozano"]
[Black "HrvojeZagreb"]
[Result "1-0"]
[WhiteElo "1914"]
[BlackElo "2112"]
[TimeControl "180+1"]
[EndTime "11:17:21 PDT"]
[Termination "arvielozano won by resignation"]

1. Nf3 {[%clk 0:03:00.9]} 1... f5 {[%clk 0:02:58.9]} 2. g3 {[%clk 0:03:01.8]}
2... Nf6 {[%clk 0:02:58.6]} 3. Bg2 {[%clk 0:03:02]} 3... d6 {[%clk 0:02:58.9]}
4. d3 {[%clk 0:03:02.1]} 4... e5 {[%clk 0:02:59]} 5. c3 {[%clk 0:03:01.4]} 5...
Be7 {[%clk 0:02:58]} 6. Nbd2 {[%clk 0:03:01.3]} 6... O-O {[%clk 0:02:58]} 7. Ng5
{[%clk 0:03:01.6]} 7... h6 {[%clk 0:02:55.3]} 8. Qb3+ {[%clk 0:03:00.4]} 8... d5
{[%clk 0:02:53]} 9. Ngf3 {[%clk 0:03:00.8]} 9... c5 {[%clk 0:02:51]} 10. e4
{[%clk 0:03:00.5]} 10... fxe4 {[%clk 0:02:49]} 11. dxe4 {[%clk 0:03:01.4]} 11...
Nc6 {[%clk 0:02:37]} 12. exd5 {[%clk 0:02:52.6]} 12... Na5 {[%clk 0:02:37.1]}
13. Qa4 {[%clk 0:02:48.1]} 13... Bd7 {[%clk 0:02:24.3]} 14. Qc2 {[%clk
0:02:46.5]} 14... e4 {[%clk 0:02:19.1]} 15. Nxe4 {[%clk 0:02:41.8]} 15... Nxe4
{[%clk 0:02:18]} 16. Qxe4 {[%clk 0:02:42.7]} 16... Re8 {[%clk 0:02:17.9]} 17.
O-O {[%clk 0:02:40.1]} 17... Bf6 {[%clk 0:02:09.5]} 18. Qg6 {[%clk 0:02:38]}
18... Bb5 {[%clk 0:01:58.6]} 19. Rd1 {[%clk 0:02:29.9]} 19... Be2 {[%clk
0:01:52.2]} 20. Re1 {[%clk 0:02:25.8]} 20... Qxd5 {[%clk 0:01:43.5]} 21. Bxh6
{[%clk 0:02:11]} 21... Qf7 {[%clk 0:00:59.8]} 22. Qxf7+ {[%clk 0:02:01.5]} 22...
Kxf7 {[%clk 0:01:00.7]} 23. Be3 {[%clk 0:02:01.7]} 23... Bc4 {[%clk 0:00:53.9]}
24. Bxc5 {[%clk 0:01:49.4]} 24... Rxe1+ {[%clk 0:00:51]} 25. Rxe1 {[%clk
0:01:50.3]} 25... Bxa2 {[%clk 0:00:50.2]} 26. Ra1 {[%clk 0:01:42.1]} 26... Nb3
{[%clk 0:00:48.4]} 27. Rxa2 {[%clk 0:01:37.7]} 27... Nxc5 {[%clk 0:00:48.6]} 28.
h4 {[%clk 0:01:33.3]} 28... a6 {[%clk 0:00:45.7]} 29. Nd4 {[%clk 0:01:32.5]}
29... Rd8 {[%clk 0:00:41.7]} 30. b4 {[%clk 0:01:27.7]} 30... Bxd4 {[%clk
0:00:34]} 31. cxd4 {[%clk 0:01:28.6]} 31... Nd3 {[%clk 0:00:29.3]} 32. Bxb7
{[%clk 0:01:15.1]} 32... Rxd4 {[%clk 0:00:28]} 33. Rd2 {[%clk 0:01:00.8]} 33...
Rd7 {[%clk 0:00:04.2]} 34. Bc8 {[%clk 0:00:23.7]} 34... Ne5 {[%clk 0:00:05.1]}
35. Rxd7+ {[%clk 0:00:22.6]} 35... Nxd7 {[%clk 0:00:04.8]} 36. Bxd7 {[%clk
0:00:23.5]} 1-0

[Event "*** SCC Grand Prix: Titled Tuesday Blitz"]
[Site "Chess.com"]
[Date "2020.06.23"]
[Round "7"]
[White "Shubinkirill2003"]
[Black "enzovsky"]
[Result "0-1"]
[WhiteElo "2616"]
[BlackElo "2369"]
[TimeControl "180+1"]
[EndTime "11:17:22 PDT"]
[Termination "enzovsky won by checkmate"]

1. e4 {[%clk 0:03:00.9]} 1... c5 {[%clk 0:02:59.2]} 2. Nf3 {[%clk 0:03:00.2]}
2... d6 {[%clk 0:02:59.7]} 3. d4 {[%clk 0:03:00]} 3... cxd4 {[%clk 0:03:00.6]}
4. Qxd4 {[%clk 0:03:00.5]} 4... Nc6 {[%clk 0:03:00]} 5. Bb5 {[%clk 0:02:59.9]}
5... Bd7 {[%clk 0:03:00.4]} 6. Qd3 {[%clk 0:02:59.5]} 6... Nf6 {[%clk
0:02:58.5]} 7. c4 {[%clk 0:02:59]} 7... g6 {[%clk 0:02:57.1]} 8. Nc3 {[%clk
0:02:58.5]} 8... Bg7 {[%clk 0:02:57.4]} 9. h3 {[%clk 0:02:59]} 9... O-O {[%clk
0:02:56.6]} 10. O-O {[%clk 0:02:59.4]} 10... Rc8 {[%clk 0:02:55.3]} 11. Be3
{[%clk 0:02:58.3]} 11... a6 {[%clk 0:02:55.5]} 12. Bxc6 {[%clk 0:02:58.6]} 12...
Bxc6 {[%clk 0:02:51.2]} 13. Nd4 {[%clk 0:02:58.5]} 13... Bd7 {[%clk 0:02:47.5]}
14. Rac1 {[%clk 0:02:56.5]} 14... Qa5 {[%clk 0:02:43.6]} 15. f3 {[%clk
0:02:37.6]} 15... Rfe8 {[%clk 0:02:41.1]} 16. Rfe1 {[%clk 0:02:27]} 16... h5
{[%clk 0:02:33.3]} 17. b3 {[%clk 0:02:24.8]} 17... h4 {[%clk 0:02:29.2]} 18. Bf2
{[%clk 0:02:14.7]} 18... b5 {[%clk 0:02:22.9]} 19. cxb5 {[%clk 0:02:05.4]} 19...
axb5 {[%clk 0:02:23.8]} 20. Ndxb5 {[%clk 0:01:59.7]} 20... Bh6 {[%clk 0:02:16]}
21. Ra1 {[%clk 0:01:37.2]} 21... Nh5 {[%clk 0:01:56.8]} 22. a4 {[%clk
0:01:26.4]} 22... Nf4 {[%clk 0:01:55.3]} 23. Qd4 {[%clk 0:01:11.8]} 23... Bg7
{[%clk 0:01:51.5]} 24. Qd2 {[%clk 0:00:59.2]} 24... Nxh3+ {[%clk 0:01:45.7]} 25.
gxh3 {[%clk 0:00:54.7]} 25... Bxb5 {[%clk 0:01:45.5]} 26. axb5 {[%clk
0:00:46.9]} 26... Qxc3 {[%clk 0:01:40.7]} 27. Qe2 {[%clk 0:00:45.1]} 27... Qe5
{[%clk 0:01:37.2]} 28. Rab1 {[%clk 0:00:33.4]} 28... d5 {[%clk 0:01:34.5]} 29.
exd5 {[%clk 0:00:27.8]} 29... Qxd5 {[%clk 0:01:35.4]} 30. b6 {[%clk 0:00:26.9]}
30... Rc3 {[%clk 0:01:30.7]} 31. Qe4 {[%clk 0:00:24.2]} 31... Qd2 {[%clk
0:01:30.1]} 32. Re2 {[%clk 0:00:19]} 32... Qd6 {[%clk 0:01:27.7]} 33. b7 {[%clk
0:00:16.7]} 33... Rb8 {[%clk 0:01:27.9]} 34. Qxe7 {[%clk 0:00:13.9]} 34... Qd5
{[%clk 0:01:27.8]} 35. Qe8+ {[%clk 0:00:12.3]} 35... Rxe8 {[%clk 0:01:27.8]} 36.
Rxe8+ {[%clk 0:00:12.7]} 36... Kh7 {[%clk 0:01:28.1]} 37. b8=Q {[%clk
0:00:12.8]} 37... Qg5+ {[%clk 0:01:25.3]} 38. Kf1 {[%clk 0:00:09.3]} 38... Rxf3
{[%clk 0:01:24.8]} 39. Qh2 {[%clk 0:00:07.7]} 39... Qf5 {[%clk 0:01:21.8]} 40.
Rbe1 {[%clk 0:00:05]} 40... Rxh3 {[%clk 0:01:19.1]} 41. Qg2 {[%clk 0:00:04.7]}
41... Bd4 {[%clk 0:01:18.3]} 42. R8e2 {[%clk 0:00:03]} 42... Rf3 {[%clk
0:01:14.9]} 43. b4 {[%clk 0:00:02.9]} 43... h3 {[%clk 0:01:10.6]} 44. Qh2 {[%clk
0:00:03.1]} 44... g5 {[%clk 0:01:11.1]} 45. b5 {[%clk 0:00:02.9]} 45... g4
{[%clk 0:01:08.1]} 46. Kg1 {[%clk 0:00:02]} 46... Bxf2+ {[%clk 0:01:03.7]} 47.
Rxf2 {[%clk 0:00:02]} 47... g3 {[%clk 0:01:03.9]} 48. Qxh3+ {[%clk 0:00:01.7]}
48... Qxh3 {[%clk 0:01:02.3]} 49. Rxf3 {[%clk 0:00:02.6]} 49... Qh2+ {[%clk
0:00:59.2]} 50. Kf1 {[%clk 0:00:02.9]} 50... g2+ {[%clk 0:00:59.5]} 51. Kf2
{[%clk 0:00:03.2]} 51... g1=Q# {[%clk 0:00:59.6]} 0-1

[Event "*** SCC Grand Prix: Titled Tuesday Blitz"]
[Site "Chess.com"]
[Date "2020.06.23"]
[Round "7"]
[White "reutik"]
[Black "grandcoach"]
[Result "1-0"]
[WhiteElo "2426"]
[BlackElo "2107"]
[TimeControl "180+1"]
[EndTime "11:17:27 PDT"]
[Termination "reutik won by resignation"]

1. d4 {[%clk 0:03:00.9]} 1... Nf6 {[%clk 0:02:51.5]} 2. c4 {[%clk 0:03:00.3]}
2... e6 {[%clk 0:02:51.2]} 3. Nf3 {[%clk 0:03:00.2]} 3... d5 {[%clk 0:02:51.3]}
4. Nc3 {[%clk 0:02:59.5]} 4... c5 {[%clk 0:02:51.8]} 5. cxd5 {[%clk 0:02:59.2]}
5... Nxd5 {[%clk 0:02:52.7]} 6. e4 {[%clk 0:02:58.5]} 6... Nxc3 {[%clk
0:02:52.7]} 7. bxc3 {[%clk 0:02:59]} 7... cxd4 {[%clk 0:02:53.4]} 8. cxd4 {[%clk
0:02:59.6]} 8... Nc6 {[%clk 0:02:54]} 9. a3 {[%clk 0:02:29.8]} 9... Be7 {[%clk
0:02:46.8]} 10. Be2 {[%clk 0:02:23.2]} 10... b6 {[%clk 0:02:46.9]} 11. O-O
{[%clk 0:02:22.6]} 11... Bb7 {[%clk 0:02:47.5]} 12. Be3 {[%clk 0:02:19.6]} 12...
O-O {[%clk 0:02:47.4]} 13. Bd3 {[%clk 0:02:12.5]} 13... Rc8 {[%clk 0:02:45.3]}
14. Qe2 {[%clk 0:02:08.1]} 14... Na5 {[%clk 0:02:38.3]} 15. Rfd1 {[%clk
0:01:55]} 15... Rc3 {[%clk 0:02:37.3]} 16. a4 {[%clk 0:01:52.1]} 16... Bf6
{[%clk 0:02:18.4]} 17. Bd2 {[%clk 0:01:38.8]} 17... Rc7 {[%clk 0:02:04.6]} 18.
Bxa5 {[%clk 0:01:35.2]} 18... bxa5 {[%clk 0:02:05.2]} 19. Bb5 {[%clk 0:01:31.5]}
19... Qa8 {[%clk 0:01:44.1]} 20. e5 {[%clk 0:01:06.9]} 20... Be7 {[%clk
0:01:40.5]} 21. Rac1 {[%clk 0:01:06.7]} 21... Rfc8 {[%clk 0:01:29.1]} 22. Rxc7
{[%clk 0:01:04]} 22... Rxc7 {[%clk 0:01:30]} 23. Ne1 {[%clk 0:00:48.3]} 23...
Bb4 {[%clk 0:01:25.4]} 24. f3 {[%clk 0:00:47.7]} 24... a6 {[%clk 0:01:04.3]} 25.
Bd3 {[%clk 0:00:44.9]} 25... Bc6 {[%clk 0:01:04.7]} 26. Rc1 {[%clk 0:00:32.6]}
26... Rd7 {[%clk 0:01:01.5]} 27. Bxa6 {[%clk 0:00:30.1]} 27... Rxd4 {[%clk
0:00:46.4]} 28. Nc2 {[%clk 0:00:22.1]} 28... Rd2 {[%clk 0:00:44]} 29. Qe3 {[%clk
0:00:17.7]} 29... Qxa6 {[%clk 0:00:38.4]} 30. Nxb4 {[%clk 0:00:17.2]} 30... axb4
{[%clk 0:00:13.8]} 31. Qxd2 {[%clk 0:00:16.5]} 31... h6 {[%clk 0:00:10.6]} 32.
Qxb4 {[%clk 0:00:15.6]} 32... Bxa4 {[%clk 0:00:08.8]} 33. Ra1 {[%clk 0:00:13.4]}
33... Qb5 {[%clk 0:00:05.3]} 34. Qxa4 {[%clk 0:00:12.9]} 1-0

[Event "*** SCC Grand Prix: Titled Tuesday Blitz"]
[Site "Chess.com"]
[Date "2020.06.23"]
[Round "7"]
[White "NMZanette"]
[Black "bazar-wokzal"]
[Result "0-1"]
[WhiteElo "2172"]
[BlackElo "2431"]
[TimeControl "180+1"]
[EndTime "11:17:29 PDT"]
[Termination "bazar-wokzal won by resignation"]

1. e4 {[%clk 0:03:00.9]} 1... Nc6 {[%clk 0:02:59.3]} 2. d4 {[%clk 0:02:59.5]}
2... d5 {[%clk 0:02:59.3]} 3. e5 {[%clk 0:02:57.6]} 3... h5 {[%clk 0:02:58.8]}
4. h4 {[%clk 0:02:56.1]} 4... Bg4 {[%clk 0:02:58.4]} 5. Be2 {[%clk 0:02:54]}
5... Qd7 {[%clk 0:02:58]} 6. Nf3 {[%clk 0:02:52.6]} 6... O-O-O {[%clk
0:02:56.6]} 7. c3 {[%clk 0:02:52.1]} 7... f6 {[%clk 0:02:56.2]} 8. exf6 {[%clk
0:02:49.7]} 8... gxf6 {[%clk 0:02:55.2]} 9. Be3 {[%clk 0:02:42.9]} 9... e5
{[%clk 0:02:54.8]} 10. Nbd2 {[%clk 0:02:37.6]} 10... e4 {[%clk 0:02:53.5]} 11.
Nh2 {[%clk 0:02:34.7]} 11... Bxe2 {[%clk 0:02:53.1]} 12. Qxe2 {[%clk 0:02:34.8]}
12... f5 {[%clk 0:02:52.6]} 13. g3 {[%clk 0:02:34.2]} 13... Nf6 {[%clk
0:02:37.5]} 14. Bg5 {[%clk 0:02:26.4]} 14... Be7 {[%clk 0:02:24.9]} 15. O-O-O
{[%clk 0:02:26.1]} 15... Kb8 {[%clk 0:02:16.1]} 16. Nhf1 {[%clk 0:02:23.9]}
16... Ng4 {[%clk 0:02:09.7]} 17. f4 {[%clk 0:02:20.7]} 17... Qd6 {[%clk
0:02:01.5]} 18. Ne3 {[%clk 0:02:18.6]} 18... Bxg5 {[%clk 0:01:46.5]} 19. hxg5
{[%clk 0:02:17.2]} 19... Ne7 {[%clk 0:01:44.5]} 20. Rh3 {[%clk 0:02:00.9]} 20...
Rh7 {[%clk 0:01:32.3]} 21. Rdh1 {[%clk 0:01:58.7]} 21... Rdh8 {[%clk 0:01:32]}
22. Ndf1 {[%clk 0:01:48]} 22... c6 {[%clk 0:01:19.3]} 23. Nxg4 {[%clk
0:01:29.4]} 23... fxg4 {[%clk 0:01:18.5]} 24. R3h2 {[%clk 0:01:28]} 24... Nf5
{[%clk 0:01:17.3]} 25. Qf2 {[%clk 0:01:24.2]} 25... h4 {[%clk 0:00:52.4]} 26.
gxh4 {[%clk 0:01:22.9]} 26... e3 {[%clk 0:00:52.4]} 27. Nxe3 {[%clk 0:01:06.3]}
27... Nxe3 {[%clk 0:00:43.1]} 28. Qxe3 {[%clk 0:01:06]} 28... Re7 {[%clk
0:00:43.4]} 29. Qf2 {[%clk 0:00:57.7]} 29... Rf8 {[%clk 0:00:41.9]} 30. f5
{[%clk 0:00:55.5]} 30... g3 {[%clk 0:00:41]} 31. Qd2 {[%clk 0:00:36.2]} 31...
gxh2 {[%clk 0:00:39.5]} 32. f6 {[%clk 0:00:36.7]} 32... Re4 {[%clk 0:00:33.2]}
33. Rxh2 {[%clk 0:00:36.2]} 33... Qg3 {[%clk 0:00:25.2]} 34. Rf2 {[%clk
0:00:35.3]} 34... Rxh4 {[%clk 0:00:20.5]} 35. f7 {[%clk 0:00:32.1]} 35... Rg4
{[%clk 0:00:18.9]} 36. Re2 {[%clk 0:00:27.9]} 36... Re4 {[%clk 0:00:16.2]} 37.
Rf2 {[%clk 0:00:22.8]} 37... Rg4 {[%clk 0:00:15.3]} 38. Re2 {[%clk 0:00:22.6]}
38... Rxf7 {[%clk 0:00:15.5]} 39. Re8+ {[%clk 0:00:22.5]} 39... Kc7 {[%clk
0:00:15.8]} 40. g6 {[%clk 0:00:22.6]} 40... Rxg6 {[%clk 0:00:14.9]} 0-1

[Event "*** SCC Grand Prix: Titled Tuesday Blitz"]
[Site "Chess.com"]
[Date "2020.06.23"]
[Round "7"]
[White "icychess54"]
[Black "metalbattler"]
[Result "1-0"]
[WhiteElo "2313"]
[BlackElo "2094"]
[TimeControl "180+1"]
[EndTime "11:17:29 PDT"]
[Termination "icychess54 won by checkmate"]

1. c4 {[%clk 0:03:00.9]} 1... c6 {[%clk 0:02:56]} 2. Nf3 {[%clk 0:03:00.5]} 2...
d5 {[%clk 0:02:56.6]} 3. e3 {[%clk 0:03:00.9]} 3... Nf6 {[%clk 0:02:55.9]} 4.
Nc3 {[%clk 0:03:01.4]} 4... Bg4 {[%clk 0:02:53.7]} 5. Be2 {[%clk 0:03:01.7]}
5... Nbd7 {[%clk 0:02:52.5]} 6. O-O {[%clk 0:03:02]} 6... e6 {[%clk 0:02:52.8]}
7. b3 {[%clk 0:03:02.4]} 7... Bd6 {[%clk 0:02:53.2]} 8. Bb2 {[%clk 0:03:02.9]}
8... O-O {[%clk 0:02:52.7]} 9. d4 {[%clk 0:03:03.3]} 9... Qe7 {[%clk 0:02:52.4]}
10. Nd2 {[%clk 0:03:00.4]} 10... Bxe2 {[%clk 0:02:51.8]} 11. Qxe2 {[%clk
0:03:01.3]} 11... a5 {[%clk 0:02:31.6]} 12. e4 {[%clk 0:02:59.1]} 12... dxe4
{[%clk 0:02:31.4]} 13. Ncxe4 {[%clk 0:02:59.1]} 13... Nxe4 {[%clk 0:02:32]} 14.
Nxe4 {[%clk 0:02:59.6]} 14... Bc7 {[%clk 0:02:26.5]} 15. a4 {[%clk 0:02:52.7]}
15... Rad8 {[%clk 0:02:20.5]} 16. Ba3 {[%clk 0:02:52.6]} 16... Qh4 {[%clk
0:02:14.7]} 17. g3 {[%clk 0:02:52.7]} 17... Qh3 {[%clk 0:02:10.4]} 18. Bxf8
{[%clk 0:02:47]} 18... Nxf8 {[%clk 0:02:10.4]} 19. Rad1 {[%clk 0:02:31.7]} 19...
h5 {[%clk 0:02:05.6]} 20. Ng5 {[%clk 0:02:11.5]} 20... Qf5 {[%clk 0:01:52.3]}
21. h4 {[%clk 0:02:10.8]} 21... Ng6 {[%clk 0:01:37.8]} 22. Qxh5 {[%clk
0:02:00.7]} 22... Nf8 {[%clk 0:01:18.2]} 23. Qf3 {[%clk 0:01:58.1]} 23... Qg6
{[%clk 0:01:10]} 24. Qe4 {[%clk 0:01:57.3]} 24... f5 {[%clk 0:01:07.2]} 25. Qe2
{[%clk 0:01:47.3]} 25... Bb6 {[%clk 0:00:56.9]} 26. c5 {[%clk 0:01:39.4]} 26...
Bc7 {[%clk 0:00:54.8]} 27. Rfe1 {[%clk 0:01:37.9]} 27... Re8 {[%clk 0:00:40.8]}
28. Nf3 {[%clk 0:01:28.3]} 28... Nd7 {[%clk 0:00:30.4]} 29. d5 {[%clk
0:01:11.6]} 29... Nxc5 {[%clk 0:00:18.7]} 30. d6 {[%clk 0:01:11.8]} 30... Bd8
{[%clk 0:00:17.7]} 31. Ne5 {[%clk 0:01:10.6]} 31... Qf6 {[%clk 0:00:13.8]} 32.
Qe3 {[%clk 0:01:01.5]} 32... Ne4 {[%clk 0:00:13.7]} 33. Nf3 {[%clk 0:00:40.4]}
33... Rf8 {[%clk 0:00:13.6]} 34. Nd2 {[%clk 0:00:35.8]} 34... Nxd6 {[%clk
0:00:12]} 35. Nc4 {[%clk 0:00:32.4]} 35... Nxc4 {[%clk 0:00:11.7]} 36. bxc4
{[%clk 0:00:33.3]} 36... Re8 {[%clk 0:00:11.1]} 37. Rd7 {[%clk 0:00:32.2]} 37...
Be7 {[%clk 0:00:09.2]} 38. Rxb7 {[%clk 0:00:29.8]} 38... Bb4 {[%clk 0:00:08.7]}
39. Rd1 {[%clk 0:00:29]} 39... Qg6 {[%clk 0:00:07.9]} 40. Rdd7 {[%clk
0:00:27.9]} 40... c5 {[%clk 0:00:06.6]} 41. Qg5 {[%clk 0:00:25.5]} 41... Qxg5
{[%clk 0:00:06.4]} 42. hxg5 {[%clk 0:00:26.4]} 42... Bd2 {[%clk 0:00:05.9]} 43.
Rxg7+ {[%clk 0:00:26]} 43... Kf8 {[%clk 0:00:05.6]} 44. Rbf7# {[%clk 0:00:25.2]}
1-0

[Event "*** SCC Grand Prix: Titled Tuesday Blitz"]
[Site "Chess.com"]
[Date "2020.06.23"]
[Round "7"]
[White "AndreyNeves"]
[Black "rynos0411"]
[Result "0-1"]
[WhiteElo "2206"]
[BlackElo "2373"]
[TimeControl "180+1"]
[EndTime "11:17:30 PDT"]
[Termination "rynos0411 won on time"]

1. d4 {[%clk 0:03:00.9]} 1... Nf6 {[%clk 0:02:58.4]} 2. c4 {[%clk 0:03:00.3]}
2... e6 {[%clk 0:02:58.2]} 3. g3 {[%clk 0:02:59.3]} 3... d5 {[%clk 0:02:55.4]}
4. Bg2 {[%clk 0:02:59.3]} 4... Be7 {[%clk 0:02:56]} 5. Nf3 {[%clk 0:02:59.7]}
5... O-O {[%clk 0:02:56.2]} 6. O-O {[%clk 0:02:59.6]} 6... dxc4 {[%clk
0:02:56.7]} 7. Qc2 {[%clk 0:02:58.6]} 7... a6 {[%clk 0:02:56]} 8. a4 {[%clk
0:02:55.5]} 8... Bd7 {[%clk 0:02:55.9]} 9. Ne5 {[%clk 0:02:48.7]} 9... Nc6
{[%clk 0:02:41.1]} 10. Nxc6 {[%clk 0:02:45.5]} 10... Bxc6 {[%clk 0:02:41]} 11.
Bxc6 {[%clk 0:02:44.2]} 11... bxc6 {[%clk 0:02:41.9]} 12. Qxc4 {[%clk 0:02:44]}
12... Qd5 {[%clk 0:02:42]} 13. Nd2 {[%clk 0:02:25.5]} 13... Rfd8 {[%clk
0:02:37.2]} 14. e3 {[%clk 0:02:25.2]} 14... c5 {[%clk 0:02:32.2]} 15. Qxd5
{[%clk 0:02:01.1]} 15... Rxd5 {[%clk 0:02:30.8]} 16. Nf3 {[%clk 0:01:48.7]}
16... Rb8 {[%clk 0:02:28.4]} 17. Ra2 {[%clk 0:01:38.6]} 17... Ne4 {[%clk
0:02:14.2]} 18. Ne5 {[%clk 0:01:26]} 18... Rb3 {[%clk 0:02:08.6]} 19. f3 {[%clk
0:01:10.6]} 19... Nd6 {[%clk 0:01:51.8]} 20. dxc5 {[%clk 0:00:49.6]} 20... Rxc5
{[%clk 0:01:42.8]} 21. Ng4 {[%clk 0:00:26.3]} 21... h5 {[%clk 0:01:32.7]} 22.
Nf2 {[%clk 0:00:24.6]} 22... Nf5 {[%clk 0:01:30.9]} 23. Rd1 {[%clk 0:00:18.6]}
23... Nxe3 {[%clk 0:01:17.7]} 24. Bxe3 {[%clk 0:00:18.5]} 24... Rxe3 {[%clk
0:01:17.7]} 25. b4 {[%clk 0:00:17.9]} 25... Rd5 {[%clk 0:01:11.1]} 26. Rxd5
{[%clk 0:00:16]} 26... exd5 {[%clk 0:01:12]} 27. f4 {[%clk 0:00:14.1]} 27...
Bxb4 {[%clk 0:01:10.8]} 28. Kg2 {[%clk 0:00:09.3]} 28... d4 {[%clk 0:01:03]} 29.
Rc2 {[%clk 0:00:06.5]} 29... c5 {[%clk 0:01:00.1]} 30. Rc4 {[%clk 0:00:06.6]}
30... d3 {[%clk 0:00:57.3]} 31. Ne4 {[%clk 0:00:05.8]} 31... d2 {[%clk
0:00:21.9]} 32. Nxd2 {[%clk 0:00:05.7]} 32... Re2+ {[%clk 0:00:22]} 33. Kf3
{[%clk 0:00:04.9]} 33... Rxd2 {[%clk 0:00:22.9]} 34. Re4 {[%clk 0:00:04.5]}
34... Ra2 {[%clk 0:00:19.9]} 35. h3 {[%clk 0:00:02.2]} 35... Ra3+ {[%clk
0:00:18.7]} 0-1